Workbook

Sheet Αναφορά πωλήσεων προϊόντων
B1: Αναφορά πωλήσεων προϊόντων
B20: Προϊόντα

Sheet Ιστορικά δεδομένα
B1: Ιστορικό τιμοκαταλόγου προϊόντων και πωλήσεων
B3: Κωδικός προϊόντος | C3: Όνομα προϊόντος | D3: Ημερομηνία τιμής | E3: Τιμή μονάδας λιανικής | F3: Τιμή μονάδας χονδρικής* | G3: Πωληθείσες μονάδες (λιανική) | H3: Πωληθείσες μονάδες (χονδρική) | I3: Σύνολο πωλήσεων (αρ.) | J3: Σύνολο πωλήσεων (€)
B4: 5 | C4: =IFERROR(IF(tblSales[[#This Row],[Κωδικός προϊόντος]]<>"",VLOOKUP(tblSales[Κωδικός προϊόντος],tblProducts[[Κωδικός προϊόντος]:[Όνομα]],2,FALSE),""),"Άγνωστος κωδικός προϊόντος") -> Σορτσάκια | D4: 2012-01-01 | E4: 20 | F4: 20.00 € | G4: 629 | H4: 1,254 | I4: =tblSales[[#This Row],[Πωληθείσες μονάδες (λιανική)]]+tblSales[[#This Row],[Πωληθείσες μονάδες (χονδρική)]] -> 1,883 | J4: =tblSales[[#This Row],[Πωληθείσες μονάδες (λιανική)]]*tblSales[[#This Row],[Τιμή μονάδας λιανικής]]+tblSales[[#This Row],[Πωληθείσες μονάδες (χονδρική)]]*tblSales[[#This Row],[Τιμή μονάδας χονδρικής*]] -> 37,660.00 €
B5: 1 | C5: =IFERROR(IF(tblSales[[#This Row],[Κωδικός προϊόντος]]<>"",VLOOKUP(tblSales[Κωδικός προϊόντος],tblProducts[[Κωδικός προϊόντος]:[Όνομα]],2,FALSE),""),"Άγνωστος κωδικός προϊόντος") -> Πουκάμισα | D5: 2012-01-01 | E5: 88 | F5: 54.00 € | G5: 734 | H5: 1,427 | I5: =tblSales[[#This Row],[Πωληθείσες μονάδες (λιανική)]]+tblSales[[#This Row],[Πωληθείσες μονάδες (χονδρική)]] -> 2,161 | J5: =tblSales[[#This Row],[Πωληθείσες μονάδες (λιανική)]]*tblSales[[#This Row],[Τιμή μονάδας λιανικής]]+tblSales[[#This Row],[Πωληθείσες μονάδες (χονδρική)]]*tblSales[[#This Row],[Τιμή μονάδας χονδρικής*]] -> 141,650.00 €
B6: 2 | C6: =IFERROR(IF(tblSales[[#This Row],[Κωδικός προϊόντος]]<>"",VLOOKUP(tblSales[Κωδικός προϊόντος],tblProducts[[Κωδικός προϊόντος]:[Όνομα]],2,FALSE),""),"Άγνωστος κωδικός προϊόντος") -> Σανδάλια | D6: 2012-01-01 | E6: 70 | F6: 44.00 € | G6: 744 | H6: 1,043 | I6: =tblSales[[#This Row],[Πωληθείσες μονάδες (λιανική)]]+tblSales[[#This Row],[Πωληθείσες μονάδες (χονδρική)]] -> 1,787 | J6: =tblSales[[#This Row],[Πωληθείσες μονάδες (λιανική)]]*tblSales[[#This Row],[Τιμή μονάδας λιανικής]]+tblSales[[#This Row],[Πωληθείσες μονάδες (χονδρική)]]*tblSales[[#This Row],[Τιμή μονάδας χονδρικής*]] -> 97,972.00 €
B7: 3 | C7: =IFERROR(IF(tblSales[[#This Row],[Κωδικός προϊόντος]]<>"",VLOOKUP(tblSales[Κωδικός προϊόντος],tblProducts[[Κωδικός προϊόντος]:[Όνομα]],2,FALSE),""),"Άγνωστος κωδικός προϊόντος") -> Ομπρέλες | D7: 2012-01-01 | E7: 63 | F7: 44.00 € | G7: 681 | H7: 1,523 | I7: =tblSales[[#This Row],[Πωληθείσες μονάδες (λιανική)]]+tblSales[[#This Row],[Πωληθείσες μονάδες (χονδρική)]] -> 2,204 | J7: =tblSales[[#This Row],[Πωληθείσες μονάδες (λιανική)]]*tblSales[[#This Row],[Τιμή μονάδας λιανικής]]+tblSales[[#This Row],[Πωληθείσες μονάδες (χονδρική)]]*tblSales[[#This Row],[Τιμή μονάδας χονδρικής*]] -> 109,915.00 €
B8: 4 | C8: =IFERROR(IF(tblSales[[#This Row],[Κωδικός προϊόντος]]<>"",VLOOKUP(tblSales[Κωδικός προϊόντος],tblProducts[[Κωδικός προϊόντος]:[Όνομα]],2,FALSE),""),"Άγνωστος κωδικός προϊόντος") -> Μπουκάλια νερού | D8: 2012-01-01 | E8: 35 | F8: 27.00 € | G8: 602 | H8: 1,822 | I8: =tblSales[[#This Row],[Πωληθείσες μονάδες (λιανική)]]+tblSales[[#This Row],[Πωληθείσες μονάδες (χονδρική)]] -> 2,424 | J8: =tblSales[[#This Row],[Πωληθείσες μονάδες (λιανική)]]*tblSales[[#This Row],[Τιμή μονάδας λιανικής]]+tblSales[[#This Row],[Πωληθείσες μονάδες (χονδρική)]]*tblSales[[#This Row],[Τιμή μονάδας χονδρικής*]] -> 70,264.00 €
B9: 1 | C9: =IFERROR(IF(tblSales[[#This Row],[Κωδικός προϊόντος]]<>"",VLOOKUP(tblSales[Κωδικός προϊόντος],tblProducts[[Κωδικός προϊόντος]:[Όνομα]],2,FALSE),""),"Άγνωστος κωδικός προϊόντος") -> Πουκάμισα | D9: 2012-02-01 | E9: 55 | F9: 44.00 € | G9: 678 | H9: 1,515 | I9: =tblSales[[#This Row],[Πωληθείσες μονάδες (λιανική)]]+tblSales[[#This Row],[Πωληθείσες μονάδες (χονδρική)]] -> 2,193 | J9: =tblSales[[#This Row],[Πωληθείσες μονάδες (λιανική)]]*tblSales[[#This Row],[Τιμή μονάδας λιανικής]]+tblSales[[#This Row],[Πωληθείσες μονάδες (χονδρική)]]*tblSales[[#This Row],[Τιμή μονάδας χονδρικής*]] -> 103,950.00 €
B10: 2 | C10: =IFERROR(IF(tblSales[[#This Row],[Κωδικός προϊόντος]]<>"",VLOOKUP(tblSales[Κωδικός προϊόντος],tblProducts[[Κωδικός προϊόντος]:[Όνομα]],2,FALSE),""),"Άγνωστος κωδικός προϊόντος") -> Σανδάλια | D10: 2012-02-01 | E10: 83 | F10: 54.00 € | G10: 753 | H10: 1,005 | I10: =tblSales[[#This Row],[Πωληθείσες μονάδες (λιανική)]]+tblSales[[#This Row],[Πωληθείσες μονάδες (χονδρική)]] -> 1,758 | J10: =tblSales[[#This Row],[Πωληθείσες μονάδες (λιανική)]]*tblSales[[#This Row],[Τιμή μονάδας λιανικής]]+tblSales[[#This Row],[Πωληθείσες μονάδες (χονδρική)]]*tblSales[[#This Row],[Τιμή μονάδας χονδρικής*]] -> 116,769.00 €
B11: 3 | C11: =IFERROR(IF(tblSales[[#This Row],[Κωδικός προϊόντος]]<>"",VLOOKUP(tblSales[Κωδικός προϊόντος],tblProducts[[Κωδικός προϊόντος]:[Όνομα]],2,FALSE),""),"Άγνωστος κωδικός προϊόντος") -> Ομπρέλες | D11: 2012-02-01 | E11: 34 | F11: 34.00 € | G11: 986 | H11: 1,069 | I11: =tblSales[[#This Row],[Πωληθείσες μονάδες (λιανική)]]+tblSales[[#This Row],[Πωληθείσες μονάδες (χονδρική)]] -> 2,055 | J11: =tblSales[[#This Row],[Πωληθείσες μονάδες (λιανική)]]*tblSales[[#This Row],[Τιμή μονάδας λιανικής]]+tblSales[[#This Row],[Πωληθείσες μονάδες (χονδρική)]]*tblSales[[#This Row],[Τιμή μονάδας χονδρικής*]] -> 69,870.00 €
B12: 4 | C12: =IFERROR(IF(tblSales[[#This Row],[Κωδικός προϊόντος]]<>"",VLOOKUP(tblSales[Κωδικός προϊόντος],tblProducts[[Κωδικός προϊόντος]:[Όνομα]],2,FALSE),""),"Άγνωστος κωδικός προϊόντος") -> Μπουκάλια νερού | D12: 2012-02-01 | E12: 35 | F12: 25.00 € | G12: 848 | H12: 1,211 | I12: =tblSales[[#This Row],[Πωληθείσες μονάδες (λιανική)]]+tblSales[[#This Row],[Πωληθείσες μονάδες (χονδρική)]] -> 2,059 | J12: =tblSales[[#This Row],[Πωληθείσες μονάδες (λιανική)]]*tblSales[[#This Row],[Τιμή μονάδας λιανικής]]+tblSales[[#This Row],[Πωληθείσες μονάδες (χονδρική)]]*tblSales[[#This Row],[Τιμή μονάδας χονδρικής*]] -> 59,955.00 €
B13: 5 | C13: =IFERROR(IF(tblSales[[#This Row],[Κωδικός προϊόντος]]<>"",VLOOKUP(tblSales[Κωδικός προϊόντος],tblProducts[[Κωδικός προϊόντος]:[Όνομα]],2,FALSE),""),"Άγνωστος κωδικός προϊόντος") -> Σορτσάκια | D13: 2012-02-01 | E13: 41 | F13: 38.00 € | G13: 980 | H13: 1,330 | I13: =tblSales[[#This Row],[Πωληθείσες μονάδες (λιανική)]]+tblSales[[#This Row],[Πωληθείσες μονάδες (χονδρική)]] -> 2,310 | J13: =tblSales[[#This Row],[Πωληθείσες μονάδες (λιανική)]]*tblSales[[#This Row],[Τιμή μονάδας λιανικής]]+tblSales[[#This Row],[Πωληθείσες μονάδες (χονδρική)]]*tblSales[[#This Row],[Τιμή μονάδας χονδρικής*]] -> 90,720.00 €
B14: 1 | C14: =IFERROR(IF(tblSales[[#This Row],[Κωδικός προϊόντος]]<>"",VLOOKUP(tblSales[Κωδικός προϊόντος],tblProducts[[Κωδικός προϊόντος]:[Όνομα]],2,FALSE),""),"Άγνωστος κωδικός προϊόντος") -> Πουκάμισα | D14: 2012-02-29 | E14: 27 | F14: 18.00 € | G14: 533 | H14: 1,936 | I14: =tblSales[[#This Row],[Πωληθείσες μονάδες (λιανική)]]+tblSales[[#This Row],[Πωληθείσες μονάδες (χονδρική)]] -> 2,469 | J14: =tblSales[[#This Row],[Πωληθείσες μονάδες (λιανική)]]*tblSales[[#This Row],[Τιμή μονάδας λιανικής]]+tblSales[[#This Row],[Πωληθείσες μονάδες (χονδρική)]]*tblSales[[#This Row],[Τιμή μονάδας χονδρικής*]] -> 49,239.00 €
B15: 2 | C15: =IFERROR(IF(tblSales[[#This Row],[Κωδικός προϊόντος]]<>"",VLOOKUP(tblSales[Κωδικός προϊόντος],tblProducts[[Κωδικός προϊόντος]:[Όνομα]],2,FALSE),""),"Άγνωστος κωδικός προϊόντος") -> Σανδάλια | D15: 2012-02-29 | E15: 38 | F15: 28.00 € | G15: 952 | H15: 1,512 | I15: =tblSales[[#This Row],[Πωληθείσες μονάδες (λιανική)]]+tblSales[[#This Row],[Πωληθείσες μονάδες (χονδρική)]] -> 2,464 | J15: =tblSales[[#This Row],[Πωληθείσες μονάδες (λιανική)]]*tblSales[[#This Row],[Τιμή μονάδας λιανικής]]+tblSales[[#This Row],[Πωληθείσες μονάδες (χονδρική)]]*tblSales[[#This Row],[Τιμή μονάδας χονδρικής*]] -> 78,512.00 €
B16: 3 | C16: =IFERROR(IF(tblSales[[#This Row],[Κωδικός προϊόντος]]<>"",VLOOKUP(tblSales[Κωδικός προϊόντος],tblProducts[[Κωδικός προϊόντος]:[Όνομα]],2,FALSE),""),"Άγνωστος κωδικός προϊόντος") -> Ομπρέλες | D16: 2012-02-29 | E16: 92 | F16: 92.00 € | G16: 956 | H16: 1,266 | I16: =tblSales[[#This Row],[Πωληθείσες μονάδες (λιανική)]]+tblSales[[#This Row],[Πωληθείσες μονάδες (χονδρική)]] -> 2,222 | J16: =tblSales[[#This Row],[Πωληθείσες μονάδες (λιανική)]]*tblSales[[#This Row],[Τιμή μονάδας λιανικής]]+tblSales[[#This Row],[Πωληθείσες μονάδες (χονδρική)]]*tblSales[[#This Row],[Τιμή μονάδας χονδρικής*]] -> 204,424.00 €
B17: 4 | C17: =IFERROR(IF(tblSales[[#This Row],[Κωδικός προϊόντος]]<>"",VLOOKUP(tblSales[Κωδικός προϊόντος],tblProducts[[Κωδικός προϊόντος]:[Όνομα]],2,FALSE),""),"Άγνωστος κωδικός προϊόντος") -> Μπουκάλια νερού | D17: 2012-02-29 | E17: 43 | F17: 36.00 € | G17: 952 | H17: 1,390 | I17: =tblSales[[#This Row],[Πωληθείσες μονάδες (λιανική)]]+tblSales[[#This Row],[Πωληθείσες μονάδες (χονδρική)]] -> 2,342 | J17: =tblSales[[#This Row],[Πωληθείσες μονάδες (λιανική)]]*tblSales[[#This Row],[Τιμή μονάδας λιανικής]]+tblSales[[#This Row],[Πωληθείσες μονάδες (χονδρική)]]*tblSales[[#This Row],[Τιμή μονάδας χονδρικής*]] -> 90,976.00 €
B18: 5 | C18: =IFERROR(IF(tblSales[[#This Row],[Κωδικός προϊόντος]]<>"",VLOOKUP(tblSales[Κωδικός προϊόντος],tblProducts[[Κωδικός προϊόντος]:[Όνομα]],2,FALSE),""),"Άγνωστος κωδικός προϊόντος") -> Σορτσάκια | D18: 2012-02-29 | E18: 98 | F18: 73.00 € | G18: 530 | H18: 1,452 | I18: =tblSales[[#This Row],[Πωληθείσες μονάδες (λιανική)]]+tblSales[[#This Row],[Πωληθείσες μονάδες (χονδρική)]] -> 1,982 | J18: =tblSales[[#This Row],[Πωληθείσες μονάδες (λιανική)]]*tblSales[[#This Row],[Τιμή μονάδας λιανικής]]+tblSales[[#This Row],[Πωληθείσες μονάδες (χονδρική)]]*tblSales[[#This Row],[Τιμή μονάδας χονδρικής*]] -> 157,936.00 €
B19: 1 | C19: =IFERROR(IF(tblSales[[#This Row],[Κωδικός προϊόντος]]<>"",VLOOKUP(tblSales[Κωδικός προϊόντος],tblProducts[[Κωδικός προϊόντος]:[Όνομα]],2,FALSE),""),"Άγνωστος κωδικός προϊόντος") -> Πουκάμισα | D19: 2012-03-31 | E19: 38 | F19: 28.00 € | G19: 973 | H19: 1,415 | I19: =tblSales[[#This Row],[Πωληθείσες μονάδες (λιανική)]]+tblSales[[#This Row],[Πωληθείσες μονάδες (χονδρική)]] -> 2,388 | J19: =tblSales[[#This Row],[Πωληθείσες μονάδες (λιανική)]]*tblSales[[#This Row],[Τιμή μονάδας λιανικής]]+tblSales[[#This Row],[Πωληθείσες μονάδες (χονδρική)]]*tblSales[[#This Row],[Τιμή μονάδας χονδρικής*]] -> 76,594.00 €
B20: 2 | C20: =IFERROR(IF(tblSales[[#This Row],[Κωδικός προϊόντος]]<>"",VLOOKUP(tblSales[Κωδικός προϊόντος],tblProducts[[Κωδικός προϊόντος]:[Όνομα]],2,FALSE),""),"Άγνωστος κωδικός προϊόντος") -> Σανδάλια | D20: 2012-03-31 | E20: 50 | F20: 36.00 € | G20: 672 | H20: 1,105 | I20: =tblSales[[#This Row],[Πωληθείσες μονάδες (λιανική)]]+tblSales[[#This Row],[Πωληθείσες μονάδες (χονδρική)]] -> 1,777 | J20: =tblSales[[#This Row],[Πωληθείσες μονάδες (λιανική)]]*tblSales[[#This Row],[Τιμή μονάδας λιανικής]]+tblSales[[#This Row],[Πωληθείσες μονάδες (χονδρική)]]*tblSales[[#This Row],[Τιμή μονάδας χονδρικής*]] -> 73,380.00 €
B21: 3 | C21: =IFERROR(IF(tblSales[[#This Row],[Κωδικός προϊόντος]]<>"",VLOOKUP(tblSales[Κωδικός προϊόντος],tblProducts[[Κωδικός προϊόντος]:[Όνομα]],2,FALSE),""),"Άγνωστος κωδικός προϊόντος") -> Ομπρέλες | D21: 2012-03-31 | E21: 24 | F21: 23.00 € | G21: 769 | H21: 1,629 | I21: =tblSales[[#This Row],[Πωληθείσες μονάδες (λιανική)]]+tblSales[[#This Row],[Πωληθείσες μονάδες (χονδρική)]] -> 2,398 | J21: =tblSales[[#This Row],[Πωληθείσες μονάδες (λιανική)]]*tblSales[[#This Row],[Τιμή μονάδας λιανικής]]+tblSales[[#This Row],[Πωληθείσες μονάδες (χονδρική)]]*tblSales[[#This Row],[Τιμή μονάδας χονδρικής*]] -> 55,923.00 €
B22: 4 | C22: =IFERROR(IF(tblSales[[#This Row],[Κωδικός προϊόντος]]<>"",VLOOKUP(tblSales[Κωδικός προϊόντος],tblProducts[[Κωδικός προϊόντος]:[Όνομα]],2,FALSE),""),"Άγνωστος κωδικός προϊόντος") -> Μπουκάλια νερού | D22: 2012-03-31 | E22: 72 | F22: 57.00 € | G22: 985 | H22: 1,848 | I22: =tblSales[[#This Row],[Πωληθείσες μονάδες (λιανική)]]+tblSales[[#This Row],[Πωληθείσες μονάδες (χονδρική)]] -> 2,833 | J22: =tblSales[[#This Row],[Πωληθείσες μονάδες (λιανική)]]*tblSales[[#This Row],[Τιμή μονάδας λιανικής]]+tblSales[[#This Row],[Πωληθείσες μονάδες (χονδρική)]]*tblSales[[#This Row],[Τιμή μονάδας χονδρικής*]] -> 176,256.00 €
B23: 5 | C23: =IFERROR(IF(tblSales[[#This Row],[Κωδικός προϊόντος]]<>"",VLOOKUP(tblSales[Κωδικός προϊόντος],tblProducts[[Κωδικός προϊόντος]:[Όνομα]],2,FALSE),""),"Άγνωστος κωδικός προϊόντος") -> Σορτσάκια | D23: 2012-03-31 | E23: 85 | F23: 43.00 € | G23: 721 | H23: 1,426 | I23: =tblSales[[#This Row],[Πωληθείσες μονάδες (λιανική)]]+tblSales[[#This Row],[Πωληθείσες μονάδες (χονδρική)]] -> 2,147 | J23: =tblSales[[#This Row],[Πωληθείσες μονάδες (λιανική)]]*tblSales[[#This Row],[Τιμή μονάδας λιανικής]]+tblSales[[#This Row],[Πωληθείσες μονάδες (χονδρική)]]*tblSales[[#This Row],[Τιμή μονάδας χονδρικής*]] -> 122,603.00 €
B24: 1 | C24: =IFERROR(IF(tblSales[[#This Row],[Κωδικός προϊόντος]]<>"",VLOOKUP(tblSales[Κωδικός προϊόντος],tblProducts[[Κωδικός προϊόντος]:[Όνομα]],2,FALSE),""),"Άγνωστος κωδικός προϊόντος") -> Πουκάμισα | D24: 2012-04-30 | E24: 91 | F24: 65.00 € | G24: 603 | H24: 1,226 | I24: =tblSales[[#This Row],[Πωληθείσες μονάδες (λιανική)]]+tblSales[[#This Row],[Πωληθείσες μονάδες (χονδρική)]] -> 1,829 | J24: =tblSales[[#This Row],[Πωληθείσες μονάδες (λιανική)]]*tblSales[[#This Row],[Τιμή μονάδας λιανικής]]+tblSales[[#This Row],[Πωληθείσες μονάδες (χονδρική)]]*tblSales[[#This Row],[Τιμή μονάδας χονδρικής*]] -> 134,563.00 €
B25: 2 | C25: =IFERROR(IF(tblSales[[#This Row],[Κωδικός προϊόντος]]<>"",VLOOKUP(tblSales[Κωδικός προϊόντος],tblProducts[[Κωδικός προϊόντος]:[Όνομα]],2,FALSE),""),"Άγνωστος κωδικός προϊόντος") -> Σανδάλια | D25: 2012-04-30 | E25: 91 | F25: 55.00 € | G25: 892 | H25: 1,823 | I25: =tblSales[[#This Row],[Πωληθείσες μονάδες (λιανική)]]+tblSales[[#This Row],[Πωληθείσες μονάδες (χονδρική)]] -> 2,715 | J25: =tblSales[[#This Row],[Πωληθείσες μονάδες (λιανική)]]*tblSales[[#This Row],[Τιμή μονάδας λιανικής]]+tblSales[[#This Row],[Πωληθείσες μονάδες (χονδρική)]]*tblSales[[#This Row],[Τιμή μονάδας χονδρικής*]] -> 181,437.00 €
B26: 3 | C26: =IFERROR(IF(tblSales[[#This Row],[Κωδικός προϊόντος]]<>"",VLOOKUP(tblSales[Κωδικός προϊόντος],tblProducts[[Κωδικός προϊόντος]:[Όνομα]],2,FALSE),""),"Άγνωστος κωδικός προϊόντος") -> Ομπρέλες | D26: 2012-04-30 | E26: 42 | F26: 42.00 € | G26: 611 | H26: 1,181 | I26: =tblSales[[#This Row],[Πωληθείσες μονάδες (λιανική)]]+tblSales[[#This Row],[Πωληθείσες μονάδες (χονδρική)]] -> 1,792 | J26: =tblSales[[#This Row],[Πωληθείσες μονάδες (λιανική)]]*tblSales[[#This Row],[Τιμή μονάδας λιανικής]]+tblSales[[#This Row],[Πωληθείσες μονάδες (χονδρική)]]*tblSales[[#This Row],[Τιμή μονάδας χονδρικής*]] -> 75,264.00 €
B27: 4 | C27: =IFERROR(IF(tblSales[[#This Row],[Κωδικός προϊόντος]]<>"",VLOOKUP(tblSales[Κωδικός προϊόντος],tblProducts[[Κωδικός προϊόντος]:[Όνομα]],2,FALSE),""),"Άγνωστος κωδικός προϊόντος") -> Μπουκάλια νερού | D27: 2012-04-30 | E27: 85 | F27: 43.00 € | G27: 530 | H27: 1,039 | I27: =tblSales[[#This Row],[Πωληθείσες μονάδες (λιανική)]]+tblSales[[#This Row],[Πωληθείσες μονάδες (χονδρική)]] -> 1,569 | J27: =tblSales[[#This Row],[Πωληθείσες μονάδες (λιανική)]]*tblSales[[#This Row],[Τιμή μονάδας λιανικής]]+tblSales[[#This Row],[Πωληθείσες μονάδες (χονδρική)]]*tblSales[[#This Row],[Τιμή μονάδας χονδρικής*]] -> 89,727.00 €
B28: 5 | C28: =IFERROR(IF(tblSales[[#This Row],[Κωδικός προϊόντος]]<>"",VLOOKUP(tblSales[Κωδικός προϊόντος],tblProducts[[Κωδικός προϊόντος]:[Όνομα]],2,FALSE),""),"Άγνωστος κωδικός προϊόντος") -> Σορτσάκια | D28: 2012-04-30 | E28: 82 | F28: 71.00 € | G28: 716 | H28: 1,249 | I28: =tblSales[[#This Row],[Πωληθείσες μονάδες (λιανική)]]+tblSales[[#This Row],[Πωληθείσες μονάδες (χονδρική)]] -> 1,965 | J28: =tblSales[[#This Row],[Πωληθείσες μονάδες (λιανική)]]*tblSales[[#This Row],[Τιμή μονάδας λιανικής]]+tblSales[[#This Row],[Πωληθείσες μονάδες (χονδρική)]]*tblSales[[#This Row],[Τιμή μονάδας χονδρικής*]] -> 147,391.00 €
B29: 1 | C29: =IFERROR(IF(tblSales[[#This Row],[Κωδικός προϊόντος]]<>"",VLOOKUP(tblSales[Κωδικός προϊόντος],tblProducts[[Κωδικός προϊόντος]:[Όνομα]],2,FALSE),""),"Άγνωστος κωδικός προϊόντος") -> Πουκάμισα | D29: 2012-05-14 | E29: 34 | F29: 31.00 € | G29: 850 | H29: 1,548 | I29: =tblSales[[#This Row],[Πωληθείσες μονάδες (λιανική)]]+tblSales[[#This Row],[Πωληθείσες μονάδες (χονδρική)]] -> 2,398 | J29: =tblSales[[#This Row],[Πωληθείσες μονάδες (λιανική)]]*tblSales[[#This Row],[Τιμή μονάδας λιανικής]]+tblSales[[#This Row],[Πωληθείσες μονάδες (χονδρική)]]*tblSales[[#This Row],[Τιμή μονάδας χονδρικής*]] -> 76,888.00 €
B30: 2 | C30: =IFERROR(IF(tblSales[[#This Row],[Κωδικός προϊόντος]]<>"",VLOOKUP(tblSales[Κωδικός προϊόντος],tblProducts[[Κωδικός προϊόντος]:[Όνομα]],2,FALSE),""),"Άγνωστος κωδικός προϊόντος") -> Σανδάλια | D30: 2012-05-14 | E30: 64 | F30: 40.00 € | G30: 876 | H30: 1,663 | I30: =tblSales[[#This Row],[Πωληθείσες μονάδες (λιανική)]]+tblSales[[#This Row],[Πωληθείσες μονάδες (χονδρική)]] -> 2,539 | J30: =tblSales[[#This Row],[Πωληθείσες μονάδες (λιανική)]]*tblSales[[#This Row],[Τιμή μονάδας λιανικής]]+tblSales[[#This Row],[Πωληθείσες μονάδες (χονδρική)]]*tblSales[[#This Row],[Τιμή μονάδας χονδρικής*]] -> 122,584.00 €
B31: 3 | C31: =IFERROR(IF(tblSales[[#This Row],[Κωδικός προϊόντος]]<>"",VLOOKUP(tblSales[Κωδικός προϊόντος],tblProducts[[Κωδικός προϊόντος]:[Όνομα]],2,FALSE),""),"Άγνωστος κωδικός προϊόντος") -> Ομπρέλες | D31: 2012-05-14 | E31: 33 | F31: 30.00 € | G31: 881 | H31: 1,149 | I31: =tblSales[[#This Row],[Πωληθείσες μονάδες (λιανική)]]+tblSales[[#This Row],[Πωληθείσες μονάδες (χονδρική)]] -> 2,030 | J31: =tblSales[[#This Row],[Πωληθείσες μονάδες (λιανική)]]*tblSales[[#This Row],[Τιμή μονάδας λιανικής]]+tblSales[[#This Row],[Πωληθείσες μονάδες (χονδρική)]]*tblSales[[#This Row],[Τιμή μονάδας χονδρικής*]] -> 63,543.00 €
B32: 4 | C32: =IFERROR(IF(tblSales[[#This Row],[Κωδικός προϊόντος]]<>"",VLOOKUP(tblSales[Κωδικός προϊόντος],tblProducts[[Κωδικός προϊόντος]:[Όνομα]],2,FALSE),""),"Άγνωστος κωδικός προϊόντος") -> Μπουκάλια νερού | D32: 2012-05-14 | E32: 29 | F32: 27.00 € | G32: 802 | H32: 1,548 | I32: =tblSales[[#This Row],[Πωληθείσες μονάδες (λιανική)]]+tblSales[[#This Row],[Πωληθείσες μονάδες (χονδρική)]] -> 2,350 | J32: =tblSales[[#This Row],[Πωληθείσες μονάδες (λιανική)]]*tblSales[[#This Row],[Τιμή μονάδας λιανικής]]+tblSales[[#This Row],[Πωληθείσες μονάδες (χονδρική)]]*tblSales[[#This Row],[Τιμή μονάδας χονδρικής*]] -> 65,054.00 €
B33: 5 | C33: =IFERROR(IF(tblSales[[#This Row],[Κωδικός προϊόντος]]<>"",VLOOKUP(tblSales[Κωδικός προϊόντος],tblProducts[[Κωδικός προϊόντος]:[Όνομα]],2,FALSE),""),"Άγνωστος κωδικός προϊόντος") -> Σορτσάκια | D33: 2013-12-11 | E33: 24 | F33: 15.00 € | G33: 824 | H33: 1,994 | I33: =tblSales[[#This Row],[Πωληθείσες μονάδες (λιανική)]]+tblSales[[#This Row],[Πωληθείσες μονάδες (χονδρική)]] -> 2,818 | J33: =tblSales[[#This Row],[Πωληθείσες μονάδες (λιανική)]]*tblSales[[#This Row],[Τιμή μονάδας λιανικής]]+tblSales[[#This Row],[Πωληθείσες μονάδες (χονδρική)]]*tblSales[[#This Row],[Τιμή μονάδας χονδρικής*]] -> 49,686.00 €

Sheet Τιμοκατάλογος
B1: Τιμοκατάλογος προϊόντων
B3: Ηλιοτεχνική Α.Ε.
B4: Λευκών 589
B5: Αθήνα, 11111
B6: Τηλέφωνο: (425) 555-0150
B7: ΦΑΞ: (425) 555-0152
B8: www.adventure-works.com | F8: Τελευταία ενημέρωση: 15/8/2013
B10: Κωδικός προϊόντος | C10: Όνομα | D10: Περιγραφή | E10: Τιμή μονάδας λιανικής | F10: Τιμή μονάδας χονδρικής*
B11: 1 | C11: Πουκάμισα | D11: Μείνετε δροσεροί όλο το καλοκαίρι με τα προπλυμένα πουκάμισά μας από 100% βαμβάκι | E11: 22.00 € | F11: 15.00 €
B12: 2 | C12: Σανδάλια | D12: Φορέστε τα πολύ ανθεκτικά σανδάλια με ελαστική σόλα και περπατήστε στην καυτή άμμο με ευκολία. | E12: 10.00 € | F12: 6.00 €
B13: 3 | C13: Ομπρέλες | D13: Καλυφθείτε από τον ήλιο κάτω από τις μεγάλες ομπρέλες που μπλοκάρουν το 96% της επιβλαβούς υπεριώδους ακτινοβολίας. | E13: 30.00 € | F13: 20.00 €
B14: 4 | C14: Μπουκάλια νερού | D14: Ενυδατωθείτε με νερό στην ιδανική θερμοκρασία από τα μονωμένα μπουκάλια νερού της εταιρείας μας. | E14: 7.00 € | F14: 5.00 €
B15: 5 | C15: Σορτσάκια | D15: Μπείτε κατευθείαν από το μπάνιο στο αυτοκίνητο, με τα νάιλον σορτσάκια που στεγνώνουν αμέσως. | E15: 15.00 € | F15: 8.00 €
F17: Καλέστε μας αν δεν βρίσκετε κάτι στη λίστα.
F18: *Οι τιμές χονδρικής ισχύουν για την αγορά 12 τεμαχίων και άνω.

Sheet Price Point Pivot (hidden)
B1: Συγκεντρωτικός Πίνακας Επιπέδων Τιμών
B2: Αυτό το φύλλο πρέπει να παραμείνει κρυφό. Τυχόν τροποποιήσεις στον παρακάτω Συγκεντρωτικό Πίνακα ενδέχεται να προκαλέσουν εσφαλμένα δεδομένα στην Αναφορά πωλήσεων προϊόντων.
B3: Επιλεγμένο προϊόν: | C3: =IF(LEN(B5),B5,"Κανένας") -> Μπουκάλια νερού
B4: Όνομα προϊόντος | C4: Τιμή μονάδας λιανικής | D4: Άθροισμα από Σύνολο πωλήσεων (αρ.)
B5: Μπουκάλια νερού | C5: 29 € | D5: 2350
C6: 35 € | D6: 4483
C7: 43 € | D7: 2342
C8: 72 € | D8: 2833
C9: 85 € | D9: 1569

Sheet Sales Trend Pivot (hidden)
B1: Συγκεντρωτικός Πίνακας Τάσης Πωλήσεων
B2: Αυτό το φύλλο πρέπει να παραμείνει κρυφό. Τυχόν τροποποιήσεις στον παρακάτω Συγκεντρωτικό Πίνακα ενδέχεται να προκαλέσουν εσφαλμένα δεδομένα στην Αναφορά πωλήσεων προϊόντων.
B3: Άθροισμα από Σύνολο πωλήσεων (αρ.) | C3: Όνομα προϊόντος
B4: Ημερομηνία τιμής | C4: Μπουκάλια νερού
B5: Ιαν | C5: 2424
B6: Φεβ | C6: 4401
B7: Μαρ | C7: 2833
B8: Απρ | C8: 1569
B9: Μαϊ | C9: 2350
